bitfinex/quotes_BTCUSD_20251012
["timestamp","ask_amount","ask_price","bid_price","bid_amount"]
[1760232355745,0.52114753,110410.0,110400.0,0.05572976]
[1760232355966,0.53882753,110410.0,110400.0,0.05572976]
[1760232356178,0.53882753,110410.0,110400.0,0.00610976]
[1760232356179,0.56784753,110410.0,110400.0,0.00610976]
[1760232356578,0.60482371,110410.0,110400.0,0.00610976]
[1760232356716,0.52115942,110400.0,110390.0,0.02149]
[1760232357118,0.52115942,110400.0,110390.0,0.04962]
[1760232358195,0.52115942,110400.0,110390.0,0.09342]
[1760232358366,0.52115942,110400.0,110390.0,0.05062]
[1760232358602,0.52531528,110400.0,110390.0,0.05162]
[1760232358804,0.52531528,110400.0,110390.0,0.063311]
[1760232359009,0.52531528,110400.0,110390.0,0.107111]
[1760232359216,0.52531528,110400.0,110390.0,0.063311]
[1760232360191,0.52531528,110400.0,110390.0,0.107111]
[1760232360547,0.52531528,110400.0,110390.0,0.063311]
[1760232360752,0.52531528,110400.0,110390.0,0.107111]
[1760232361388,0.34415586,110400.0,110390.0,0.107111]
[1760232362347,0.52531528,110400.0,110390.0,0.107111]
[1760232362549,0.52531528,110400.0,110390.0,0.105251]
[1760232362770,0.34415586,110400.0,110390.0,0.105251]
[1760232362906,0.52531528,110400.0,110390.0,0.105251]
[1760232363312,0.34415586,110400.0,110390.0,0.105251]
[1760232363948,0.34415586,110400.0,110390.0,0.76604562]
[1760232364095,0.00415586,110400.0,110390.0,0.77807994]
[1760232364901,0.00415586,110400.0,110390.0,0.1354029]
[1760232366202,0.18531528,110400.0,110390.0,0.105251]
[1760232366697,0.67511649,110400.0,110390.0,0.02349]
[1760232367012,4.62877741,110400.0,110390.0,0.002]
[1760232367208,5.12768862,110400.0,110390.0,0.002]
[1760232367405,5.12768862,110400.0,110390.0,0.001]
[1760232367558,4.62877741,110400.0,110390.0,0.05238]
[1760232367797,4.62877741,110400.0,110390.0,0.104851]
[1760232367798,0.53372841,110400.0,110390.0,0.104851]
[1760232367965,0.53372841,110400.0,110390.0,0.062911]
[1760232368167,0.56202841,110400.0,110390.0,0.011531]
[1760232368368,0.53372841,110400.0,110390.0,0.062911]
[1760232368871,0.56202841,110400.0,110390.0,0.032521]
[1760232369096,0.53372841,110400.0,110390.0,0.062911]
[1760232369915,0.00415586,110400.0,110390.0,0.104851]
[1760232370080,0.00415586,110400.0,110390.0,0.105851]
[1760232370317,0.00415586,110400.0,110390.0,0.12062359]
[1760232370821,0.34415586,110400.0,110390.0,0.105851]
[1760232371061,0.52531528,110400.0,110390.0,0.104851]
[1760232371243,0.56204005,110400.0,110390.0,0.033521]
[1760232371443,0.56204005,110400.0,110390.0,0.02199]
[1760232371760,0.56204005,110400.0,110390.0,0.001]
[1760232371761,5.12770026,110400.0,110390.0,0.001]
[1760232371985,0.52118281,110390.0,110380.0,0.02099]
[1760232372143,0.5296006,110390.0,110380.0,0.029432]
[1760232372348,0.5296006,110390.0,110380.0,0.101762]
[1760232372349,0.34842477,110390.0,110380.0,0.101762]
[1760232372594,0.34,110390.0,110380.0,0.31310614]
[1760232373021,0.34,110390.0,110380.0,0.77460735]
[1760232373818,0.34,110390.0,110380.0,0.77560735]
[1760232374418,0.34,110390.0,110380.0,0.59541511]
[1760232374848,0.34,110390.0,110380.0,0.1339139]
[1760232375209,0.34,110390.0,110380.0,0.103762]
[1760232375210,0.52117583,110390.0,110380.0,0.103762]
[1760232376018,0.52117583,110390.0,110380.0,0.102762]
[1760232376378,0.52962279,110390.0,110380.0,0.103762]
[1760232376867,0.34844696,110390.0,110380.0,0.102762]
[1760232377264,0.52962279,110390.0,110380.0,0.103762]
[1760232377464,0.53318528,110390.0,110380.0,0.103762]
[1760232378460,0.35200945,110390.0,110380.0,0.103762]
[1760232378845,0.35200945,110390.0,110380.0,0.61353433]
[1760232379043,0.35200945,110390.0,110380.0,0.59541511]
[1760232379625,0.35200945,110390.0,110380.0,0.1339139]
[1760232380076,0.01200945,110390.0,110380.0,0.1339139]
[1760232380478,0.01200945,110390.0,110380.0,0.31510614]
[1760232381237,0.01200945,110390.0,110380.0,0.1339139]
[1760232382162,0.01200945,110390.0,110380.0,0.77660735]
[1760232383558,0.00356249,110390.0,110380.0,0.77660735]
[1760232386789,0.00356249,110390.0,110380.0,0.80160734]
[1760232387491,0.00356249,110390.0,110380.0,0.80060734]
[1760232387692,0.00356249,110390.0,110380.0,0.80260734]
[1760232387894,0.00356249,110390.0,110380.0,0.31510614]
[1760232388092,0.00356249,110390.0,110380.0,0.77860735]
[1760232388293,0.00356249,110390.0,110380.0,0.77660735]
[1760232388491,0.00356249,110390.0,110380.0,0.77860735]
[1760232389948,0.00356249,110390.0,110380.0,0.31710614]
[1760232390158,0.00356249,110390.0,110380.0,0.77860735]
[1760232390737,0.00356249,110390.0,110380.0,0.31710614]
[1760232390976,0.00356249,110390.0,110380.0,0.77860735]
[1760232391576,0.00356249,110390.0,110380.0,0.31710614]
[1760232391977,0.52473832,110390.0,110380.0,0.105762]
[1760232392179,0.53322091,110390.0,110380.0,0.105762]
[1760232392847,0.53322091,110390.0,110380.0,0.103762]
[1760232393073,0.35204508,110390.0,110380.0,0.103762]
[1760232393471,0.53322091,110390.0,110380.0,0.103762]
[1760232393745,0.53322091,110390.0,110380.0,0.102762]
[1760232393919,0.53322091,110390.0,110380.0,0.103762]
[1760232394209,0.53322091,110390.0,110380.0,0.102762]
[1760232394858,0.53322091,110390.0,110380.0,0.103762]
[1760232395634,0.53322091,110390.0,110380.0,0.061822]
[1760232395837,0.53322091,110390.0,110380.0,0.105062]
[1760232396674,0.60034943,110390.0,110380.0,0.05149]
[1760232396821,0.55018943,110390.0,110380.0,0.09473]
[1760232397005,0.57079943,110390.0,110380.0,0.05149]
[1760232397211,0.60034943,110390.0,110380.0,0.05149]
[1760232397410,0.55018943,110390.0,110380.0,0.09373]
[1760232397689,0.55018943,110390.0,110380.0,0.105252]
[1760232398032,0.60034943,110390.0,110380.0,0.013522]
[1760232398229,0.60034943,110390.0,110380.0,0.012522]
[1760232398462,0.657492,110360.0,110340.0,0.02188]
[1760232398672,0.657492,110360.0,110330.0,0.09350362]
[1760232398673,0.52125793,110340.0,110330.0,0.09350362]
[1760232398872,0.52125793,110340.0,110330.0,0.13796356]
[1760232398988,0.52125793,110340.0,110330.0,0.10957994]
[1760232399595,0.52125793,110340.0,110330.0,0.12785825]
[1760232399852,0.52125793,110340.0,110330.0,0.10973082]
[1760232400297,0.52125793,110340.0,110330.0,0.11073082]
[1760232400910,0.52125793,110340.0,110330.0,0.06749082]
[1760232401113,0.55080793,110340.0,110330.0,0.00215088]
[1760232401327,0.58778793,110340.0,110330.0,0.00215088]
[1760232401530,5.24469157,110340.0,110330.0,0.00215088]
[1760232401733,5.26161345,110340.0,110330.0,0.00215088]
[1760232401911,5.28728724,110340.0,110330.0,0.00215088]
[1760232402340,5.27036536,110340.0,110330.0,0.00215088]
[1760232402540,5.28726958,110340.0,110330.0,0.00215088]
[1760232402745,5.28726958,110340.0,110330.0,0.00115088]
[1760232402946,0.55080793,110340.0,110330.0,0.02303088]
[1760232403124,0.52125793,110340.0,110330.0,0.05511954]
[1760232403783,0.55080793,110340.0,110330.0,0.02661954]
[1760232404187,0.55140195,110340.0,110330.0,0.02203088]
[1760232404619,1.17853659,110340.0,110330.0,0.00015088]
[1760232404829,5.24528559,110340.0,110330.0,0.00015088]
[1760232405252,5.27095938,110340.0,110330.0,0.00015088]
[1760232405817,5.28517629,110340.0,110330.0,0.00015088]
[1760232408702,5.28517629,110340.0,110320.0,1e-08]
[1760232408703,2.84118714,110330.0,110320.0,1e-08]
[1760232408905,0.52135654,110280.0,110270.0,0.09400362]
[1760232409107,0.52135654,110280.0,110270.0,0.09415444]
[1760232409360,0.52135654,110280.0,110270.0,0.09464082]
[1760232409794,0.55148654,110280.0,110270.0,0.02253082]
[1760232409956,0.55148654,110280.0,110270.0,0.05235082]
[1760232409957,0.52135654,110280.0,110270.0,0.05235082]
[1760232410143,0.52135654,110280.0,110270.0,0.05335082]
[1760232410322,0.55148654,110280.0,110270.0,0.02253082]
[1760232410557,0.55148654,110280.0,110270.0,0.02353082]
[1760232410868,0.55148654,110280.0,110270.0,0.02453082]
[1760232411224,0.55148654,110280.0,110270.0,0.00215082]
[1760232411829,0.55148654,110280.0,110270.0,0.00115082]
[1760232412247,0.52135654,110280.0,110270.0,0.05435082]
[1760232412482,0.52135654,110280.0,110270.0,0.05335082]
[1760232413168,0.55148654,110280.0,110270.0,0.00115082]
[1760232413376,0.58836998,110280.0,110270.0,0.00115082]
[1760232414359,0.62454998,110280.0,110270.0,0.00115082]
[1760232414575,0.62454998,110280.0,110270.0,0.00412301]
[1760232414908,0.55823998,110280.0,110270.0,0.09861301]
[1760232415112,0.55823998,110280.0,110270.0,0.05532301]
[1760232415295,0.58836998,110280.0,110270.0,0.00312301]
[1760232415499,0.55823998,110280.0,110270.0,0.05532301]
[1760232415895,0.55823998,110280.0,110270.0,0.09761301]
[1760232416097,0.55823998,110280.0,110270.0,0.05632301]
[1760232416423,0.55823998,110280.0,110270.0,0.09861301]
[1760232416823,0.55823998,110280.0,110270.0,0.05632301]
[1760232417022,0.55823998,110280.0,110270.0,0.09861301]
[1760232417454,0.62454998,110280.0,110270.0,0.00412301]
[1760232417686,0.55823998,110280.0,110270.0,0.05632301]
[1760232418191,0.58836998,110280.0,110270.0,0.05632301]
[1760232418411,0.58836998,110280.0,110270.0,0.00412301]
[1760232419623,0.55823998,110280.0,110270.0,0.05632301]
[1760232420587,0.55823998,110280.0,110270.0,0.11075231]
[1760232420818,0.37688344,110280.0,110270.0,0.11075231]
[1760232421026,0.03688344,110280.0,110270.0,0.34041449]
[1760232421233,0.34,110280.0,110270.0,0.14090421]
[1760232421469,0.34,110290.0,110270.0,0.3222772]
[1760232421678,0.5213401,110290.0,110280.0,0.06467]
[1760232421886,0.5213401,110290.0,110280.0,0.09263]
[1760232425721,0.5213401,110290.0,110280.0,0.09363]
[1760232425967,0.5506601,110290.0,110280.0,0.05134]
[1760232426193,0.63998972,110290.0,110280.0,0.001]
[1760232426875,0.63998972,110290.0,110280.0,0.00337754]
[1760232427330,0.65689468,110290.0,110280.0,0.00337754]
[1760232427546,0.65689468,110290.0,110280.0,0.00237754]
[1760232428405,5.33329986,110290.0,110280.0,0.00237754]
[1760232428618,4.76881901,110290.0,110280.0,0.00237754]
[1760232428840,5.35897365,110290.0,110280.0,0.00237754]
[1760232430083,4.76881901,110290.0,110280.0,0.00237754]
[1760232432951,4.73333901,110290.0,110280.0,0.00237754]
[1760232433099,0.61159622,110290.0,110280.0,0.09574754]
[1760232433303,0.23470468,110290.0,110280.0,0.11388319]
[1760232433549,0.23470468,110290.0,110280.0,0.14549667]
[1760232433729,0.39336458,110290.0,110280.0,0.14549667]
[1760232434125,0.55779972,110290.0,110280.0,0.11388319]
[1760232434289,0.55779972,110290.0,110280.0,0.09574754]
[1760232435162,0.55779972,110290.0,110280.0,0.09674754]
[1760232435411,0.03645962,110290.0,110280.0,0.30825598]
[1760232435554,0.32479648,110320.0,110290.0,0.21148698]
[1760232435906,0.26988563,110320.0,110310.0,0.04869]
[1760232436153,0.01697122,110320.0,110310.0,0.09337]
[1760232436348,0.05606691,110330.0,110310.0,0.29280573]
[1760232436549,0.23734126,110330.0,110320.0,0.08353907]
[1760232436749,0.27408518,110330.0,110320.0,0.11149907]
[1760232436953,0.61408518,110330.0,110320.0,0.04869]
[1760232437154,0.63147518,110330.0,110320.0,0.04769]
[1760232437777,0.34,110320.0,110310.0,0.02073]
[1760232437974,0.53826201,110320.0,110310.0,0.02073]
[1760232438406,0.52130722,110310.0,110300.0,0.02073]
[1760232438832,0.53826842,110310.0,110300.0,0.06541]
[1760232439032,0.55735842,110310.0,110300.0,0.04869]
[1760232439555,0.55735842,110310.0,110300.0,0.09337]
[1760232439752,0.58667842,110310.0,110300.0,0.02173]
[1760232439967,0.58667842,110310.0,110300.0,0.001]
[1760232440609,0.62315842,110310.0,110300.0,0.001]
[1760232441009,0.62315842,110310.0,110280.0,0.06541]
[1760232441010,0.1813401,110290.0,110280.0,0.06541]
[1760232441330,0.5213401,110290.0,110280.0,0.06793836]
[1760232441669,0.5213401,110290.0,110280.0,0.09589836]
[1760232441802,0.5680501,110290.0,110280.0,0.05121836]
[1760232441989,0.58500958,110290.0,110280.0,0.02325836]
[1760232442190,0.58500958,110290.0,110280.0,0.05121836]
[1760232442441,0.58500958,110290.0,110280.0,0.02325836]
[1760232442652,0.58500958,110290.0,110280.0,0.02425836]
[1760232442841,0.58500958,110290.0,110280.0,0.02325836]
[1760232443433,0.66164428,110290.0,110280.0,0.00252836]
[1760232443653,0.66164428,110290.0,110280.0,0.00352836]
[1760232443867,0.69812428,110290.0,110280.0,0.00352836]
[1760232444105,0.69812428,110290.0,110280.0,0.00252836]
[1760232444106,0.62148958,110290.0,110280.0,0.00252836]
[1760232444309,0.641032,110290.0,110280.0,0.00252836]
[1760232444502,4.707781,110290.0,110280.0,0.00352836]
[1760232444861,5.29793564,110290.0,110280.0,0.00352836]
[1760232445046,5.32360943,110290.0,110280.0,0.00252836]
[1760232445288,5.34779235,110290.0,110280.0,0.00252836]
[1760232445708,4.75763771,110290.0,110280.0,0.00252836]
[1760232445866,4.671301,110290.0,110280.0,0.00252836]
[1760232446072,4.67130125,110290.0,110280.0,0.00252836]
[1760232446857,4.70778125,110290.0,110280.0,0.00252836]
[1760232447979,4.73220959,110290.0,110280.0,0.00352836]
[1760232448423,0.60455225,110290.0,110280.0,0.05121836]
[1760232448574,0.57523225,110290.0,110280.0,0.05121836]
[1760232449033,0.60455225,110290.0,110280.0,0.02325836]
[1760232449335,0.60455225,110290.0,110280.0,0.05121836]
[1760232450886,0.57523225,110290.0,110280.0,0.05121836]
[1760232451805,0.60320225,110290.0,110280.0,0.02325836]
[1760232452006,0.60320225,110290.0,110280.0,0.00252836]
[1760232453274,0.58365958,110290.0,110280.0,0.00252836]
[1760232453473,0.60320134,110290.0,110280.0,0.00252836]
[1760232453795,5.16700489,110290.0,110280.0,0.00252836]
[1760232456050,5.14746313,110290.0,110280.0,0.00252836]
[1760232456257,4.96612303,110290.0,110280.0,0.00252836]
[1760232456481,5.14746313,110290.0,110280.0,0.00252836]
[1760232457479,1.08071413,110290.0,110280.0,0.00252836]
[1760232457886,5.17313692,110290.0,110280.0,0.00252836]
[1760232458919,5.21908986,110290.0,110280.0,0.00252836]
[1760232459110,5.0501831,110270.0,110260.0,0.0004]
[1760232459230,1.01799702,110270.0,110260.0,0.00090303]
[1760232459433,5.17337981,110270.0,110260.0,0.00090303]
[1760232460482,1.10663081,110270.0,110260.0,0.00090303]
[1760232460646,5.17337981,110270.0,110260.0,0.00090303]
[1760232460849,5.17337981,110270.0,110260.0,0.00190303]
[1760232461753,5.23106285,110270.0,110260.0,0.00190303]
[1760232461987,0.52142235,110240.0,110230.0,0.02158]
[1760232462148,0.53913235,110240.0,110230.0,0.02171706]
[1760232462348,0.56732235,110240.0,110230.0,0.00013706]
[1760232462557,1.06469346,110240.0,110230.0,0.00013706]
[1760232462751,1.09036725,110240.0,110230.0,0.00013706]
[1760232462955,0.59299614,110240.0,110230.0,0.00013706]
[1760232463158,0.62830614,110240.0,110230.0,0.00213706]
[1760232463778,0.62830614,110240.0,110230.0,0.00013706]
[1760232464152,0.62830614,110240.0,110230.0,0.00113706]
[1760232464361,0.62830614,110240.0,110230.0,0.00213706]
[1760232464523,0.62830614,110240.0,110230.0,0.00113706]
[1760232465433,0.62830614,110240.0,110230.0,0.00013706]
[1760232466617,5.15711625,110240.0,110230.0,0.00013706]
[1760232468819,4.69505514,110240.0,110230.0,0.00013706]
[1760232469584,4.65974514,110240.0,110230.0,0.00013706]
[1760232469943,4.65974514,110240.0,110230.0,0.00311087]
[1760232470330,4.69505514,110240.0,110230.0,0.00311087]
[1760232471448,4.65974514,110240.0,110230.0,0.00311087]
[1760232471647,0.18142235,110240.0,110230.0,0.09465087]
[1760232472259,0.52142235,110240.0,110230.0,0.09465087]
[1760232472657,0.18141993,110250.0,110230.0,0.09465087]
[1760232472853,0.18142235,110240.0,110230.0,0.05041706]
[1760232473060,0.52142235,110240.0,110230.0,0.05041706]
[1760232473418,0.18142235,110240.0,110230.0,0.09167706]
[1760232473556,0.52142235,110240.0,110230.0,0.09167706]
[1760232475077,0.62166758,110240.0,110230.0,0.00013706]
[1760232475286,0.65697758,110240.0,110230.0,0.00013706]
[1760232476334,0.54961235,110240.0,110230.0,0.02874706]
[1760232476464,0.54961235,110240.0,110230.0,0.00013706]
[1760232478097,0.54961235,110240.0,110230.0,0.02874706]
[1760232478304,0.54961235,110240.0,110230.0,0.00311087]
[1760232478970,5.11285246,110240.0,110230.0,0.00311087]
[1760232479324,5.15378615,110240.0,110230.0,0.00311087]
[1760232479644,5.17330081,110240.0,110230.0,0.00311087]
[1760232480063,1.13296289,110240.0,110230.0,0.00311087]
[1760232480442,5.19971189,110240.0,110230.0,0.00311087]
[1760232480643,5.19971189,110240.0,110230.0,1e-08]
[1760232480644,5.2001438,110240.0,110230.0,1e-08]
[1760232480875,4.58820427,110220.0,110210.0,0.0004]
[1760232481073,4.62186153,110220.0,110210.0,0.0004]
[1760232481277,4.68448153,110220.0,110210.0,0.0004]
[1760232482037,5.19695015,110220.0,110210.0,1e-08]
[1760232482271,5.21647287,110220.0,110210.0,1e-08]
[1760232482493,5.24090121,110220.0,110210.0,1e-08]
[1760232482902,5.25513322,110220.0,110210.0,1e-08]
[1760232483860,5.25613322,110220.0,110210.0,1e-08]
[1760232484762,5.68852579,110220.0,110210.0,1e-08]
[1760232485142,5.68849256,110220.0,110210.0,1e-08]
[1760232485343,5.73367686,110220.0,110210.0,1e-08]
[1760232485582,5.35807937,110220.0,110210.0,1e-08]
[1760232485988,5.29927572,110220.0,110210.0,1e-08]
[1760232486190,5.27527929,110220.0,110210.0,1e-08]
[1760232486419,5.30767186,110220.0,110210.0,0.00119002]
[1760232486799,0.27426977,110220.0,110210.0,0.03020002]
[1760232487005,0.03216927,110220.0,110210.0,0.09173002]
[1760232487206,0.01523201,110220.0,110210.0,0.27320175]
[1760232487438,0.01523201,110220.0,110210.0,0.76541476]
[1760232487755,0.001,110220.0,110210.0,0.39207299]
[1760232487954,0.001,110220.0,110210.0,0.8541341]
[1760232488089,0.00097672,110240.0,110220.0,0.0301519]
[1760232488300,0.00097672,110240.0,110230.0,0.02148]
[1760232488301,0.52239907,110240.0,110230.0,0.02148]
[1760232488530,0.52239907,110240.0,110230.0,0.09054]
[1760232488737,0.18239907,110240.0,110230.0,0.09054]
[1760232488969,0.250559,110240.0,110230.0,0.05049]
[1760232489155,0.1814388,110230.0,110220.0,0.02148]
[1760232489359,0.1814388,110230.0,110220.0,0.06153]
[1760232489669,0.1814388,110230.0,110220.0,0.09054]
[1760232489897,0.5214388,110230.0,110220.0,0.09054]
[1760232491190,0.5214388,110230.0,110220.0,0.09154]
[1760232491541,0.5214388,110230.0,110220.0,0.05249]
[1760232491934,0.5214388,110230.0,110220.0,0.09254]
[1760232492740,0.58421891,110230.0,110220.0,0.002]
[1760232492946,1.08071002,110230.0,110220.0,0.002]
[1760232493147,4.68539791,110230.0,110220.0,0.002]
[1760232493416,5.16700098,110230.0,110220.0,0.001]
[1760232493554,5.16700098,110230.0,110220.0,0.00159495]
[1760232494287,5.16700098,110230.0,110220.0,0.00059495]
[1760232494903,0.60376087,110230.0,110220.0,0.00059495]
[1760232495239,1.10025198,110230.0,110220.0,0.00059495]
[1760232495802,5.16700098,110230.0,110220.0,0.00059495]
[1760232497120,5.13257098,110230.0,110220.0,0.00059495]
[1760232498263,4.67050987,110230.0,110220.0,0.00059495]
[1760232498412,4.70493987,110230.0,110220.0,0.00059495]
[1760232498603,5.16700098,110230.0,110220.0,0.00059495]
[1760232499141,5.16700098,110230.0,110210.0,1e-08]
[1760232499142,1.51308027,110220.0,110210.0,1e-08]
[1760232499340,1.67609792,110220.0,110210.0,1e-08]
[1760232499552,1.75916762,110220.0,110210.0,1e-08]
[1760232499753,1.77339964,110220.0,110210.0,1e-08]
[1760232500173,1.75916762,110220.0,110210.0,1e-08]
[1760232500779,1.7855787,110220.0,110210.0,1e-08]
[1760232500980,1.7855787,110220.0,110190.0,0.0004]
[1760232500981,4.2482372,110200.0,110190.0,0.0004]
[1760232501153,4.2482372,110200.0,110190.0,0.00053708]
[1760232501154,4.7885019,110200.0,110190.0,0.00053708]
[1760232501356,5.21844298,110200.0,110190.0,0.00053708]
[1760232502105,1.15169398,110200.0,110190.0,0.00053708]
[1760232502306,5.21844298,110200.0,110190.0,0.00053708]
[1760232502667,1.15169398,110200.0,110190.0,0.00053708]
[1760232502855,5.21844298,110200.0,110190.0,0.00053708]
[1760232503062,5.23267768,110200.0,110190.0,0.00053708]
[1760232503907,5.2062666,110200.0,110190.0,0.00053708]
[1760232504531,1.1395176,110200.0,110190.0,0.00053708]
[1760232504734,5.2062666,110200.0,110190.0,0.00053708]
[1760232505151,5.2062666,110200.0,110190.0,0.0023225]
[1760232505341,5.23267768,110200.0,110190.0,0.0023225]
[1760232507589,5.2062666,110200.0,110190.0,0.0023225]
[1760232507728,1.1395176,110200.0,110190.0,0.0023225]
[1760232507929,5.2062666,110200.0,110190.0,0.0023225]
[1760232508546,1.1395176,110200.0,110190.0,0.0023225]
[1760232508816,5.2062666,110200.0,110190.0,0.0023225]
[1760232509030,5.07431121,110190.0,110180.0,1e-08]
[1760232509250,5.11080837,110190.0,110180.0,1e-08]
[1760232509678,5.17396837,110190.0,110180.0,1e-08]
[1760232510120,4.71190726,110190.0,110180.0,1e-08]
[1760232510349,5.17396837,110190.0,110180.0,1e-08]
[1760232511370,4.63431378,110190.0,110180.0,1e-08]
[1760232511566,5.13043489,110190.0,110180.0,1e-08]
[1760232511997,5.14994079,110190.0,110180.0,1e-08]
[1760232512669,5.13043489,110190.0,110180.0,1e-08]
[1760232512898,5.14993832,110190.0,110180.0,1e-08]
[1760232513313,5.20034583,110190.0,110180.0,1e-08]
[1760232513531,5.17393475,110190.0,110180.0,1e-08]
[1760232513786,5.24372404,110190.0,110180.0,1e-08]
[1760232514276,5.26812655,110190.0,110180.0,1e-08]
[1760232514510,5.26812655,110190.0,110180.0,0.00059529]
[1760232514922,1.20137755,110190.0,110180.0,0.00059529]
[1760232515039,5.26812655,110190.0,110180.0,1e-08]
[1760232515245,5.24472404,110190.0,110180.0,1e-08]
[1760232515467,5.40011181,110190.0,110180.0,1e-08]
[1760232515868,5.40111181,110190.0,110180.0,1e-08]
[1760232516085,4.7596665,110190.0,110180.0,1e-08]
[1760232516255,5.35269662,110190.0,110180.0,1e-08]
[1760232516862,5.37669305,110190.0,110180.0,1e-08]
[1760232517082,5.38892931,110190.0,110180.0,1e-08]
[1760232518130,4.79588294,110190.0,110180.0,1e-08]
[1760232518810,4.77188651,110190.0,110180.0,1e-08]
[1760232519273,4.73782651,110190.0,110180.0,1e-08]
[1760232519482,4.75239933,110190.0,110180.0,1e-08]
[1760232519690,5.36491504,110190.0,110180.0,1e-08]
[1760232519902,5.36491504,110190.0,110160.0,0.0004]
[1760232519903,0.52153762,110170.0,110160.0,0.0004]
[1760232520114,4.60463662,110170.0,110160.0,0.0004]
[1760232520326,5.30155096,110170.0,110160.0,0.0004]
[1760232520544,5.32106235,110170.0,110160.0,0.0004]
[1760232520753,5.34735175,110170.0,110160.0,0.0004]
[1760232522012,5.3473597,110170.0,110160.0,0.0004]
[1760232522232,5.37175887,110170.0,110160.0,0.0004]
[1760232522437,5.37175887,110170.0,110110.0,0.09274362]
[1760232522438,2.270503,110150.0,110110.0,0.09274362]
[1760232522644,0.53834005,110120.0,110110.0,0.0932473]
[1760232523084,0.56705005,110120.0,110110.0,0.00090368]
[1760232523298,1.19353642,110120.0,110110.0,0.00090368]
[1760232523697,5.27723771,110120.0,110110.0,0.00090368]
[1760232523848,4.65075134,110120.0,110110.0,0.00090368]
[1760232524279,4.68419134,110120.0,110110.0,0.00090368]
[1760232525093,4.65075134,110120.0,110110.0,0.00090368]
[1760232525316,4.68419134,110120.0,110110.0,0.00090368]
[1760232526626,4.65075134,110120.0,110110.0,0.00090368]
[1760232526778,0.58400234,110120.0,110110.0,0.00090368]
[1760232526993,0.58400234,110120.0,110110.0,0.03168344]
[1760232527259,0.58400234,110120.0,110110.0,0.00507344]
[1760232527950,0.61744234,110120.0,110110.0,0.00507344]
[1760232529552,5.27723771,110120.0,110110.0,0.00507344]
[1760232530242,5.29674841,110120.0,110110.0,0.00507344]
[1760232530686,5.27723771,110120.0,110110.0,0.00507344]
[1760232531132,4.68419134,110120.0,110110.0,0.00507344]
[1760232531790,0.58400234,110120.0,110110.0,0.03168344]
[1760232532036,0.37367229,110120.0,110110.0,0.05231344]
[1760232532240,0.52162005,110120.0,110110.0,0.09443344]
[1760232533112,0.52162005,110120.0,110110.0,0.05231344]
[1760232533335,0.59361578,110120.0,110110.0,0.05231344]
[1760232533569,0.62232578,110120.0,110110.0,0.05231344]
[1760232533967,0.62232578,110120.0,110110.0,0.00507344]
[1760232534717,0.65576578,110120.0,110110.0,0.00507344]
[1760232535077,0.67269946,110120.0,110110.0,0.00507344]
[1760232535316,4.73944846,110120.0,110110.0,0.00507344]
[1760232535782,5.33249483,110120.0,110110.0,0.00507344]
[1760232536652,4.758963,110120.0,110110.0,0.03168344]
[1760232536854,4.758963,110120.0,110110.0,0.00507344]
[1760232536855,4.63401273,110120.0,110110.0,0.00507344]
[1760232537551,4.66745273,110120.0,110110.0,0.00507344]
[1760232537777,4.60530273,110120.0,110110.0,0.05231344]
[1760232537987,4.63401273,110120.0,110110.0,0.05231344]
[1760232538206,4.42368268,110120.0,110110.0,0.05231344]
[1760232538433,0.01424422,110130.0,110120.0,0.0301519]
[1760232538658,0.19065871,110150.0,110120.0,0.1195119]
[1760232538875,0.18158728,110140.0,110130.0,0.02063]
[1760232539317,0.18160355,110130.0,110120.0,0.06275]
[1760232539535,0.34,110130.0,110120.0,0.09778837]
[1760232539796,0.34,110130.0,110120.0,0.27098005]
[1760232540441,0.1982741,110160.0,110130.0,0.18159451]
[1760232540442,0.1815541,110160.0,110130.0,0.18159451]
[1760232540675,0.19849536,110160.0,110140.0,0.24433707]
[1760232540897,0.19849536,110160.0,110140.0,0.06275]
[1760232540898,0.18157058,110150.0,110140.0,0.06275]
[1760232541128,0.18157058,110150.0,110140.0,0.08936]
[1760232542050,0.18157058,110150.0,110140.0,0.04724]
[1760232542306,0.21973005,110150.0,110140.0,0.04724]
[1760232542526,0.55973005,110150.0,110140.0,0.04724]
[1760232542754,0.55973005,110150.0,110140.0,0.08878]
[1760232542993,0.55973005,110150.0,110140.0,0.04724]
[1760232543258,0.52158707,110140.0,110130.0,0.02063]
[1760232543519,0.53861707,110140.0,110130.0,0.02063]
[1760232543725,0.53861707,110140.0,110130.0,0.04886]
[1760232544714,0.52158707,110140.0,110130.0,0.0914]
[1760232545039,0.53854233,110140.0,110130.0,0.09537786]
[1760232547133,0.52158707,110140.0,110130.0,0.09537786]
[1760232547339,0.53854995,110140.0,110130.0,0.09537786]
[1760232547691,0.639586,110140.0,110130.0,0.05383786]
[1760232547921,0.629556,110140.0,110130.0,0.05383786]
[1760232548349,0.58263995,110140.0,110130.0,0.05383786]
[1760232548763,0.58263995,110140.0,110130.0,0.00497786]
[1760232549019,5.30464972,110140.0,110130.0,0.00497786]
[1760232549920,5.35219861,110140.0,110130.0,0.00297786]
[1760232550126,5.32779944,110140.0,110130.0,0.00297786]
[1760232550332,5.35219861,110140.0,110130.0,0.00297786]
[1760232551783,5.42212875,110140.0,110130.0,0.00297786]
[1760232552656,4.75915224,110140.0,110130.0,0.00297786]
[1760232552879,0.21810435,110140.0,110130.0,0.09278786]
[1760232553083,0.22560995,110140.0,110130.0,0.05124786]
[1760232553299,0.24263995,110140.0,110130.0,0.05124786]
[1760232553504,0.291291,110140.0,110130.0,0.05124786]
[1760232553734,0.631291,110140.0,110130.0,0.05124786]
[1760232553944,0.58263995,110140.0,110130.0,0.05124786]
[1760232554169,0.53854995,110140.0,110130.0,0.09278786]
[1760232554599,0.18157058,110150.0,110130.0,0.09278786]
[1760232554823,0.18157058,110150.0,110140.0,0.06158]
[1760232555077,0.18156767,110160.0,110140.0,0.31870079]
[1760232555320,0.24602851,110170.0,110150.0,0.854354]
[1760232555541,0.24602851,110170.0,110160.0,0.08981]
[1760232555760,0.0262894,110170.0,110160.0,0.28951951]
[1760232555973,0.19161972,110190.0,110160.0,0.29657553]
[1760232556187,0.19161972,110190.0,110180.0,0.02004]
[1760232556418,0.19161972,110190.0,110180.0,0.08981]
[1760232556654,0.2180616,110190.0,110180.0,0.08981]
[1760232558405,0.2180616,110190.0,110180.0,0.09081]
[1760232559036,0.2598734,110190.0,110180.0,0.09081]
[1760232559238,0.2180616,110190.0,110180.0,0.09081]
[1760232559449,0.2180616,110190.0,110180.0,0.04927]
[1760232559654,0.2180616,110190.0,110180.0,0.002]
[1760232559655,0.2632416,110190.0,110180.0,0.002]
[1760232559871,0.2361816,110190.0,110180.0,0.05027]
[1760232560733,0.2180616,110190.0,110180.0,0.09181]
[1760232561338,0.2180616,110190.0,110180.0,0.05027]
[1760232561548,0.2180616,110190.0,110180.0,0.1040466]